bitfinex/quotes_BTCUSD_20251215
["timestamp","ask_amount","ask_price","bid_price","bid_amount"]
[1765824149771,0.24441353,85961.0,85956.0,0.01163385]
[1765824149970,0.001,85957.0,85955.0,0.01163399]
[1765824150217,0.001,85957.0,85954.0,0.01868]
[1765824150218,0.01163372,85957.0,85954.0,0.01868]
[1765824150401,0.11687997,85955.0,85954.0,0.01868]
[1765824151321,0.11687997,85960.0,85958.0,0.24430322]
[1765824151529,0.36118036,85960.0,85956.0,0.01163385]
[1765824151886,0.01163507,85947.0,85940.0,0.01163602]
[1765824152023,0.64021114,85973.0,85972.0,1.59610305]
[1765824152459,0.76134114,85973.0,85972.0,1.59610305]
[1765824153378,0.76234114,85973.0,85972.0,1.59610305]
[1765824153792,0.597753,85973.0,85972.0,1.59610305]
[1765824153938,0.549733,85973.0,85972.0,1.59610305]
[1765824154437,0.43285303,85973.0,85972.0,1.59610305]
[1765824154613,0.48087303,85973.0,85972.0,1.59610305]
[1765824154769,0.61512332,85973.0,85972.0,1.59610305]
[1765824155333,0.552733,85973.0,85972.0,1.59610305]
[1765824155691,0.43585303,85973.0,85972.0,1.59610305]
[1765824155890,0.12087997,85973.0,85972.0,1.59610305]
[1765824156214,0.35351114,85973.0,85972.0,1.59610305]
[1765824156632,0.35251114,85973.0,85972.0,1.59610305]
[1765824156885,0.47364114,85973.0,85972.0,1.59610305]
[1765824157092,0.35351114,85973.0,85972.0,1.59610305]
[1765824157942,1.76534114,85973.0,85972.0,1.59610305]
[1765824158168,1.76234114,85973.0,85972.0,1.59610305]
[1765824158378,1.76134114,85973.0,85972.0,1.59610305]
[1765824158589,1.76534114,85973.0,85972.0,0.58111305]
[1765824159021,1.76234114,85973.0,85972.0,0.58111305]
[1765824159451,1.76434114,85973.0,85972.0,0.58111305]
[1765824159867,1.76534114,85973.0,85972.0,0.04629555]
[1765824160076,0.11687997,85944.0,85943.0,0.03358]
[1765824160284,0.11687997,85944.0,85925.0,0.06715]
[1765824160285,0.01163683,85934.0,85933.0,0.03358]
[1765824160493,0.36125355,85934.0,85933.0,0.00038098]
[1765824161525,0.11687997,85934.0,85933.0,0.03396098]
[1765824161804,0.11687997,85934.0,85933.0,0.00038098]
[1765824162210,0.11787997,85934.0,85933.0,0.00038098]
[1765824162411,0.001,85934.0,85933.0,0.03396098]
[1765824163023,0.001,85934.0,85933.0,0.14811385]
[1765824163796,0.001,85934.0,85933.0,0.17138779]
[1765824164206,0.12851437,85952.0,85947.0,0.24433426]
[1765824164415,0.00998974,85948.0,85947.0,0.01163507]
[1765824164613,0.00998974,85946.0,85945.0,0.24434048]
[1765824165714,0.01098974,85946.0,85945.0,0.24434048]
[1765824166497,0.01098974,85946.0,85944.0,0.232707]
[1765824166631,0.11687997,85945.0,85944.0,0.232707]
[1765824167434,0.001,85946.0,85944.0,0.232707]
[1765824167634,0.01163467,85950.0,85947.0,0.24433522]
[1765824167839,0.01163453,85951.0,85948.0,0.24433268]
[1765824168046,0.00998974,85943.0,85940.0,0.01163602]
[1765824168278,0.01163575,85942.0,85939.0,0.2443582]
[1765824168427,0.01163575,85942.0,85940.0,0.23271985]
[1765824168639,0.01163548,85944.0,85941.0,0.2443517]
[1765824168840,0.01163548,85944.0,85940.0,0.01163602]
[1765824168841,0.01163561,85943.0,85940.0,0.01163602]
[1765824169044,0.2443483,85943.0,85939.0,0.24435803]
[1765824169254,0.01163561,85943.0,85939.0,0.01163616]
[1765824169459,0.11687997,85940.0,85939.0,0.24435894]
[1765824169684,0.00998974,85948.0,85945.0,0.01163534]
[1765824169888,0.001,85950.0,85949.0,0.23269613]
[1765824170177,0.001,85950.0,85949.0,0.656189]
[1765824170339,0.01163047,85981.0,85976.0,0.01163115]
[1765824170536,0.0116302,85983.0,85980.0,0.01163061]
[1765824170739,0.23260414,85983.0,85979.0,0.01163074]
[1765824171008,0.11687997,85979.0,85978.0,0.01163088]
[1765824171230,0.01163182,85971.0,85970.0,0.03258]
[1765824171433,0.01163182,85971.0,85963.0,0.03258]
[1765824171434,0.23265011,85966.0,85963.0,0.03258]
[1765824171647,0.23265553,85964.0,85963.0,0.03258]
[1765824172017,0.24428261,85966.0,85963.0,0.03258]
[1765824172018,0.23265289,85965.0,85963.0,0.03258]
[1765824172239,0.23265553,85964.0,85963.0,0.03258]
[1765824173161,0.01163426,85953.0,85950.0,0.01163467]
[1765824173331,0.24430935,85957.0,85951.0,0.01163453]
[1765824173638,0.23268323,85954.0,85951.0,0.01163453]
[1765824173958,0.01163399,85955.0,85952.0,0.0116344]
[1765824174150,0.01163399,85955.0,85954.0,0.03258]
[1765824174483,0.2326776,85956.0,85954.0,0.03258]
[1765824175182,0.00998974,85958.0,85954.0,0.03258]
[1765824175183,0.02162332,85958.0,85954.0,0.03258]
[1765824175400,0.11687997,85958.0,85957.0,0.04539]
[1765824175543,0.34955173,85958.0,85957.0,0.11154]
[1765824175983,0.11687997,85958.0,85957.0,0.11154]
[1765824176166,0.11687997,85958.0,85957.0,0.34421447]
[1765824176565,0.34955173,85958.0,85957.0,0.04539]
[1765824176763,0.34955986,85955.0,85954.0,0.00161287]
[1765824176918,0.34955986,85955.0,85954.0,0.002]
[1765824177882,0.39316261,85955.0,85954.0,0.002]
[1765824178095,0.24268045,85951.0,85950.0,0.00038098]
[1765824178329,1.32748045,85951.0,85950.0,0.00038098]
[1765824178559,1.42569337,85951.0,85950.0,0.00038098]
[1765824178764,1.26778337,85951.0,85950.0,0.00038098]
[1765824180165,0.03609266,85951.0,85950.0,0.04577098]
[1765824180373,0.001,85951.0,85950.0,0.11353385]
[1765824180581,0.002,85951.0,85950.0,0.11353385]
[1765824180966,0.002,85951.0,85950.0,0.13680319]
[1765824181171,0.001,85951.0,85950.0,0.42750319]
[1765824181466,0.01163264,85965.0,85960.0,0.24429727]
[1765824181686,0.01163304,85962.0,85958.0,0.01163358]
[1765824181831,0.01163304,85962.0,85957.0,0.2443056]
[1765824182032,0.01163345,85959.0,85958.0,0.03258]
[1765824182258,0.11687997,85959.0,85958.0,0.03258]
[1765824182782,0.11687997,85959.0,85950.0,0.00038098]
[1765824182783,0.11687997,85951.0,85950.0,0.00038098]
[1765824182954,0.20006997,85951.0,85950.0,0.00038098]
[1765824183137,0.15395997,85951.0,85950.0,0.00038098]
[1765824183340,0.16613939,85951.0,85950.0,0.00038098]
[1765824183562,0.12777346,85951.0,85950.0,0.00038098]
[1765824183761,0.12777259,85951.0,85950.0,0.00238098]
[1765824184163,0.12777259,85951.0,85950.0,0.00038098]
[1765824184339,0.11787997,85951.0,85950.0,0.00038098]
[1765824184524,0.11887997,85951.0,85950.0,0.00038098]
[1765824184734,0.001,85951.0,85950.0,0.34744727]
[1765824184953,0.11687997,85962.0,85960.0,0.23266589]
[1765824185155,0.01163318,85961.0,85958.0,0.24430461]
[1765824185408,0.01163318,85961.0,85955.0,0.01163399]
[1765824185621,0.11687997,85951.0,85950.0,0.00199385]
[1765824186008,0.11687997,85951.0,85950.0,0.04860385]
[1765824186209,0.11787997,85951.0,85950.0,0.04860385]
[1765824186412,0.11687997,85951.0,85950.0,0.04860385]
[1765824186597,0.11687997,85951.0,85950.0,0.04960385]
[1765824187130,0.11687997,85951.0,85950.0,0.00299385]
[1765824187750,0.11687997,85951.0,85950.0,0.00399385]
[1765824188079,0.11687997,85951.0,85950.0,0.05060385]
[1765824188926,0.11687997,85951.0,85950.0,0.11675385]
[1765824189323,0.12851396,85955.0,85952.0,0.24431993]
[1765824189499,0.12851396,85955.0,85954.0,0.07919]
[1765824189900,0.36119445,85955.0,85954.0,0.07919]
[1765824190104,0.24430678,85958.0,85954.0,0.08080287]
[1765824190343,0.34955986,85955.0,85954.0,0.03258]
[1765824190470,0.01163426,85953.0,85950.0,0.00038098]
[1765824190671,0.43276068,85951.0,85950.0,0.00038098]
[1765824191139,1.54565429,85951.0,85950.0,0.00038098]
[1765824191518,0.24442088,85918.0,85917.0,0.0186]
[1765824191722,0.01163683,85934.0,85925.0,0.01163805]
[1765824191885,0.01163778,85927.0,85921.0,0.01163859]
[1765824192087,0.34963428,85928.0,85925.0,0.23276091]
[1765824192314,0.36127193,85928.0,85926.0,0.04661]
[1765824192713,0.36127193,85928.0,85927.0,0.04661]
[1765824193211,0.23276515,85924.0,85921.0,0.00261287]
[1765824193363,0.23276683,85923.0,85921.0,0.00161287]
[1765824193563,0.11687997,85922.0,85921.0,0.00161287]
[1765824193969,0.11687997,85922.0,85917.0,0.0187142]
[1765824193970,0.34966006,85918.0,85917.0,0.0187142]
[1765824194185,0.34966006,85918.0,85917.0,0.0001142]
[1765824194515,1.35806983,85918.0,85917.0,0.0001142]
[1765824194852,0.24276983,85918.0,85917.0,0.0001142]
[1765824195630,0.35806983,85918.0,85917.0,0.0001142]
[1765824196075,0.24276983,85918.0,85917.0,0.0001142]
[1765824196230,0.24576983,85918.0,85917.0,0.0001142]
[1765824197039,0.24276983,85918.0,85917.0,0.0001142]
[1765824197245,0.39221657,85918.0,85917.0,0.0001142]
[1765824197445,0.39421657,85918.0,85917.0,0.0001142]
[1765824197641,0.27691657,85918.0,85917.0,0.0001142]
[1765824198046,0.24576983,85918.0,85917.0,0.0001142]
[1765824198489,0.65076983,85918.0,85917.0,0.0001142]
[1765824198636,1.64876983,85918.0,85917.0,0.0001142]
[1765824198838,1.65376983,85918.0,85917.0,0.0001142]
[1765824199046,1.65076983,85918.0,85917.0,0.0001142]
[1765824199227,1.76710098,85918.0,85917.0,0.0001142]
[1765824199427,1.76910098,85918.0,85917.0,0.0001142]
[1765824199650,0.23286757,85886.0,85882.0,0.24452061]
[1765824199871,0.3497495,85885.0,85884.0,0.03369425]
[1765824200378,0.11687997,85885.0,85884.0,0.08030425]
[1765824200597,0.23286844,85886.0,85884.0,0.14645425]
[1765824200598,0.23286749,85886.0,85884.0,0.14645425]
[1765824200795,0.00998974,85886.0,85885.0,0.04661]
[1765824201042,0.01164157,85899.0,85892.0,0.01164252]
[1765824201236,0.23284101,85896.0,85893.0,0.24448712]
[1765824201440,0.01164279,85890.0,85885.0,0.00161287]
[1765824201616,0.23286459,85887.0,85885.0,0.00161287]
[1765824201815,0.23286459,85887.0,85884.0,0.03469425]
[1765824201816,0.00998974,85885.0,85884.0,0.03469425]
[1765824201996,0.00998974,85885.0,85884.0,0.03869425]
[1765824202204,0.00998974,85885.0,85884.0,0.00111425]
[1765824202820,1.12528974,85885.0,85884.0,0.00111425]
[1765824203023,1.12528974,85885.0,85884.0,0.00011425]
[1765824203225,1.406,85885.0,85884.0,0.00048966]
[1765824203454,0.34982816,85856.0,85849.0,0.04422835]
[1765824203656,0.34982816,85856.0,85855.0,0.00051429]
[1765824204378,0.11687997,85856.0,85855.0,0.00051429]
[1765824205225,0.11687997,85856.0,85855.0,0.00151429]
[1765824205431,0.23217997,85856.0,85855.0,0.00351429]
[1765824206121,0.23301332,85832.0,85831.0,0.0004]
[1765824206335,0.34989058,85833.0,85831.0,0.0004]
[1765824206336,0.34989252,85833.0,85831.0,0.00078113]
[1765824206547,0.11687997,85832.0,85831.0,0.00078113]
[1765824207699,0.15395997,85832.0,85831.0,0.00078113]
[1765824208089,0.15395997,85832.0,85831.0,0.00178113]
[1765824208328,0.26925997,85832.0,85831.0,0.00178113]
[1765824208961,0.26925997,85832.0,85831.0,0.00278113]
[1765824209161,0.55995997,85832.0,85831.0,0.00278113]
[1765824209364,1.55995997,85832.0,85831.0,0.00078113]
[1765824209697,1.55995997,85832.0,85831.0,0.00178113]
[1765824209905,1.67629112,85832.0,85831.0,0.00178113]
[1765824210119,1.68707089,85832.0,85831.0,0.00078113]
[1765824210524,0.0116508,85831.0,85827.0,0.01165134]
[1765824210872,0.0116508,85831.0,85825.0,0.23302965]
[1765824210873,0.11687997,85827.0,85825.0,0.23302965]
[1765824211008,0.11687997,85827.0,85825.0,0.00011441]
[1765824211222,0.11944,85826.0,85825.0,0.00011441]
[1765824211454,0.11944,85826.0,85798.0,0.23310469]
[1765824211455,0.00998974,85800.0,85798.0,0.23310469]
[1765824211668,0.0116546,85803.0,85797.0,0.01165541]
[1765824211882,0.11687997,85797.0,85796.0,0.01165555]
[1765824212295,0.11687997,85797.0,85796.0,0.06152842]
[1765824213342,0.11687997,85797.0,85796.0,0.06652842]
[1765824215734,0.06524627,85809.0,85804.0,0.01165446]
[1765824215938,0.12853443,85804.0,85797.0,0.01165541]
[1765824216141,0.00998974,85799.0,85798.0,0.24475991]
[1765824216553,0.00998974,85799.0,85798.0,0.29463278]
[1765824216752,0.00998974,85799.0,85798.0,0.36078278]
[1765824217137,0.11687997,85809.0,85808.0,0.24473242]
[1765824217297,0.11687997,85809.0,85807.0,0.23308094]
[1765824217709,0.11687997,85807.0,85806.0,0.01165419]
[1765824217820,0.23306255,85814.0,85813.0,0.24471816]
[1765824217821,0.11687997,85814.0,85813.0,0.24471816]
[1765824218180,0.00998974,85822.0,85821.0,0.01165215]
[1765824218324,0.01010376,85822.0,85821.0,0.01165215]
[1765824218527,0.01010376,85822.0,85821.0,0.12947502]
[1765824218528,0.00011402,85822.0,85821.0,0.12947502]
[1765824219089,0.00011402,85822.0,85821.0,0.15277933]
[1765824219333,0.00011402,85822.0,85821.0,0.12947502]
[1765824219502,0.00011402,85822.0,85821.0,0.15277933]
[1765824219750,0.00111402,85822.0,85821.0,0.15277933]
[1765824219871,0.00011402,85822.0,85821.0,0.15277933]
[1765824220292,0.00011402,85822.0,85821.0,0.56391374]
[1765824220510,0.00011402,85822.0,85821.0,0.54060943]
[1765824220887,0.00011402,85822.0,85821.0,0.42417502]
[1765824221705,0.00011402,85822.0,85821.0,0.42817502]
[1765824222760,0.00011402,85822.0,85821.0,0.42417502]
[1765824222959,0.00011402,85822.0,85821.0,0.12947502]
[1765824223159,0.00011402,85822.0,85821.0,0.06452502]
[1765824223469,0.11699399,85822.0,85821.0,0.12382287]
[1765824223619,0.11699399,85822.0,85821.0,0.05587287]
[1765824224220,0.00011402,85822.0,85821.0,0.12382287]
[1765824224470,0.00011402,85822.0,85821.0,0.12082287]
[1765824224648,0.00011402,85822.0,85821.0,0.11782287]
[1765824224980,0.00011402,85822.0,85821.0,0.05587287]
[1765824225384,0.00011402,85822.0,85821.0,0.05287287]
[1765824225606,0.11699399,85822.0,85821.0,0.00761287]
[1765824225798,0.01090591,85822.0,85821.0,0.12382287]
[1765824226001,0.00011402,85822.0,85821.0,0.12382287]
[1765824226579,0.00011402,85822.0,85821.0,0.003]
[1765824226706,0.01010376,85822.0,85821.0,0.003]
[1765824226927,0.02090089,85822.0,85821.0,0.003]
[1765824227159,0.01010376,85822.0,85821.0,0.003]
[1765824227316,0.02090089,85822.0,85821.0,0.003]
[1765824227525,0.24469534,85821.0,85818.0,0.01165256]
[1765824227726,0.00998974,85819.0,85818.0,0.01165256]
[1765824228134,0.00998974,85819.0,85818.0,0.05991256]
[1765824228590,0.00998974,85819.0,85818.0,0.12886256]
[1765824228791,0.00998974,85819.0,85818.0,0.2939639]
[1765824229002,0.01165175,85824.0,85821.0,0.23304319]
[1765824229154,0.11687997,85825.0,85824.0,0.04826]
[1765824230062,0.00998974,85823.0,85822.0,0.24468988]
[1765824230462,0.34992859,85819.0,85818.0,0.00361287]
[1765824230675,0.34992859,85819.0,85818.0,0.00261287]
[1765824230877,0.34992859,85819.0,85803.0,0.2330895]
[1765824230878,0.24471533,85814.0,85803.0,0.2330895]
[1765824231077,0.11687997,85804.0,85803.0,0.24647099]
[1765824231319,0.11687997,85814.0,85813.0,0.2330641]
[1765824231475,0.11687997,85813.0,85812.0,0.24471838]
[1765824231956,0.11687997,85813.0,85812.0,0.29459125]
[1765824232999,0.11687997,85813.0,85812.0,0.36254125]
[1765824233786,0.11687997,85813.0,85812.0,0.36654125]
[1765824234466,0.11687997,85813.0,85812.0,0.29859125]
[1765824234676,0.14177112,85813.0,85812.0,0.36654125]
[1765824235009,0.11687997,85813.0,85812.0,0.05387287]
[1765824235224,0.14177112,85813.0,85812.0,0.3548905]
[1765824235429,0.14177112,85813.0,85812.0,0.12182287]
[1765824235671,0.14177112,85813.0,85812.0,0.3548905]
[1765824236726,0.02489115,85813.0,85812.0,0.3548905]
[1765824237247,0.02489115,85813.0,85812.0,0.12182287]
[1765824237448,0.26794581,85813.0,85812.0,0.00561287]
[1765824237657,0.26794581,85813.0,85812.0,0.05387287]
[1765824238269,0.26794581,85813.0,85812.0,0.12182287]
[1765824238270,0.03488089,85813.0,85812.0,0.12182287]
[1765824238673,0.26794581,85813.0,85812.0,0.12182287]
[1765824238946,0.26794581,85813.0,85812.0,0.05387287]
[1765824239268,0.3499476,85812.0,85811.0,0.02666]
[1765824239467,0.3499476,85812.0,85803.0,0.01875402]
[1765824239468,0.11687997,85804.0,85803.0,0.01875402]
[1765824239647,0.14177112,85804.0,85803.0,0.2518461]
[1765824239846,0.14177112,85804.0,85803.0,0.3001061]
[1765824240270,0.14177112,85804.0,85803.0,0.01875402]
[1765824240478,0.25798051,85804.0,85803.0,0.01875402]
[1765824240638,0.37486048,85804.0,85803.0,0.01875402]
[1765824240845,0.37486048,85804.0,85803.0,0.00011402]
[1765824241049,0.38577661,85804.0,85803.0,0.00011402]
[1765824241374,0.03580728,85804.0,85803.0,0.35202897]
[1765824241600,0.06724201,85804.0,85803.0,0.35202897]
[1765824241799,0.06724201,85804.0,85803.0,0.35302897]
[1765824241989,0.03580728,85804.0,85803.0,0.35302897]
[1765824242410,0.03580728,85804.0,85803.0,0.69374736]
[1765824242606,0.03143473,85817.0,85815.0,0.34071839]
[1765824242816,0.03143473,85820.0,85819.0,0.23304862]
[1765824243007,0.03143473,85822.0,85819.0,0.24631392]
[1765824243206,0.03143473,85822.0,85821.0,0.23465606]
[1765824243484,0.03143473,85823.0,85822.0,0.2907]
[1765824243834,0.03143473,85823.0,85822.0,0.36396287]
[1765824244036,0.03143473,85825.0,85824.0,0.2907]
[1765824244182,0.0116489,85845.0,85825.0,0.23303233]
[1765824244183,0.03143473,85826.0,85825.0,0.23303233]
[1765824244569,0.062874,85837.0,85825.0,0.3249352]
[1765824244570,0.03143473,85827.0,85825.0,0.3249352]
[1765824244741,0.03143473,85827.0,85826.0,0.07165]
[1765824244941,0.03143473,85828.0,85827.0,0.2330269]
[1765824245089,0.03143473,85828.0,85827.0,0.23463977]
[1765824245284,0.03143473,85829.0,85827.0,0.35293977]
[1765824245495,0.03143473,85829.0,85828.0,0.07165]
[1765824245746,0.15879505,85835.0,85828.0,0.07165]
[1765824245747,0.15879505,85835.0,85834.0,0.23300789]
[1765824245979,0.15879505,85835.0,85834.0,0.27965789]
[1765824246180,0.11687997,85835.0,85834.0,0.27965789]
[1765824246368,0.062874,85839.0,85838.0,0.23299704]
[1765824246582,0.00998974,85839.0,85838.0,0.25163704]
[1765824246887,0.0216385,85846.0,85839.0,0.23299425]
[1765824247028,0.11687997,85839.0,85838.0,0.02025287]
[1765824247229,0.11699431,85839.0,85838.0,0.02025287]
[1765824247546,0.17986584,85839.0,85838.0,0.06690287]
[1765824247749,0.11699431,85839.0,85838.0,0.13855287]
[1765824248331,0.11799431,85839.0,85838.0,0.37154991]
[1765824248920,0.00111434,85839.0,85838.0,0.37154991]
[1765824250403,0.2430984,85839.0,85838.0,0.01964]
[1765824250683,0.2430984,85839.0,85838.0,0.01864]
[1765824250827,0.2430984,85839.0,85838.0,0.01964]
[1765824251029,0.2430984,85839.0,85838.0,0.02064]
[1765824251425,0.2430984,85839.0,85838.0,0.01864]
[1765824252295,0.24298406,85839.0,85838.0,0.01864]
[1765824252497,0.24298406,85839.0,85815.0,0.01165297]
[1765824252498,0.11687997,85822.0,85815.0,0.01165297]
[1765824252701,0.11687997,85822.0,85820.0,0.30469449]
[1765824252863,0.11687997,85822.0,85821.0,0.04665]
[1765824253062,0.11687997,85822.0,85821.0,0.11991287]
[1765824254402,0.11687997,85822.0,85821.0,0.12091287]
[1765824254822,0.11687997,85822.0,85821.0,0.00261287]
[1765824255015,0.11687997,85822.0,85821.0,0.12191287]
[1765824255239,0.11687997,85822.0,85821.0,0.002]
[1765824255456,0.11687997,85822.0,85821.0,0.001]
[1765824255635,0.01165229,85820.0,85817.0,0.01864]
[1765824255851,0.34993131,85818.0,85817.0,0.01864]
[1765824256021,0.41182435,85818.0,85817.0,0.01864]
[1765824256219,0.45712435,85818.0,85817.0,0.01864]
[1765824256426,0.34995356,85810.0,85809.0,0.01864]
[1765824256642,0.11687997,85810.0,85809.0,0.01864]
[1765824256895,0.11687997,85810.0,85799.0,0.01975]
[1765824256896,0.23310023,85800.0,85799.0,0.01975]
[1765824257093,0.23309751,85801.0,85795.0,0.00985677]
[1765824257094,0.00998974,85798.0,85797.0,0.03839]
[1765824257444,0.00998974,85798.0,85797.0,0.08504]
[1765824257651,0.00998974,85798.0,85797.0,0.31987559]
[1765824257847,0.00998974,85798.0,85797.0,0.15841721]
[1765824258117,0.00998974,85798.0,85797.0,0.39152559]
[1765824258250,0.00998974,85798.0,85797.0,0.15941721]
[1765824258459,0.00998974,85798.0,85797.0,0.15841721]
[1765824258978,0.2430954,85798.0,85797.0,0.15841721]
[1765824259144,0.00998974,85798.0,85797.0,0.15841721]
[1765824259606,0.00998974,85798.0,85797.0,0.08676721]
[1765824259894,0.00998974,85798.0,85797.0,0.08776721]
[1765824260479,0.00998974,85798.0,85797.0,0.08676721]
[1765824261493,0.00998974,85798.0,85797.0,0.15841721]
[1765824261906,0.00998974,85798.0,85797.0,0.15941721]
[1765824262314,0.00998974,85798.0,85797.0,0.08776721]
[1765824262489,0.2430954,85798.0,85797.0,0.08776721]
[1765824262891,0.2430954,85798.0,85797.0,0.08615434]
[1765824263106,0.2430954,85798.0,85797.0,0.03950434]
[1765824263909,0.00998974,85798.0,85797.0,0.03950434]
[1765824264115,0.3620754,85798.0,85797.0,0.00111434]
[1765824264356,0.2430954,85798.0,85797.0,0.00111434]
[1765824264746,0.2883954,85798.0,85797.0,0.00111434]
[1765824264895,0.2883954,85798.0,85797.0,0.00011434]
[1765824264896,0.3620754,85798.0,85797.0,0.00011434]
[1765824265101,0.2883954,85798.0,85797.0,0.00011434]
[1765824265323,0.2450954,85798.0,85797.0,0.04676434]
[1765824265522,0.01498974,85798.0,85797.0,0.35313559]
[1765824265854,0.01298974,85798.0,85797.0,0.35313559]
[1765824266034,0.005,85798.0,85797.0,0.35313559]
[1765824266618,0.003,85798.0,85797.0,0.35313559]
[1765824266825,0.00998974,85802.0,85801.0,0.23309751]
[1765824267021,0.00998974,85802.0,85801.0,0.30718751]
[1765824267242,0.00998974,85802.0,85801.0,0.38045038]
[1765824268213,0.01198974,85802.0,85801.0,0.38045038]
[1765824268651,0.01298974,85802.0,85801.0,0.38045038]
[1765824269015,0.01198974,85802.0,85801.0,0.38045038]
[1765824269212,0.002,85802.0,85801.0,0.38045038]
[1765824269584,0.002,85802.0,85801.0,0.38145038]
[1765824269750,0.11687997,85811.0,85801.0,0.38145038]
[1765824269751,0.11687997,85811.0,85810.0,0.23307306]
[1765824269962,0.11687997,85811.0,85810.0,0.29836306]
[1765824270161,0.11687997,85811.0,85810.0,0.37458593]
[1765824271190,0.01165175,85824.0,85810.0,0.14151287]
[1765824271391,0.05006789,85835.0,85810.0,0.14151287]
[1765824271392,0.00998974,85823.0,85822.0,0.08809202]
[1765824271622,0.00998974,85823.0,85822.0,0.07805287]
[1765824271866,0.00998974,85833.0,85832.0,0.24466398]
[1765824272066,0.0116493,85842.0,85832.0,0.24466398]
[1765824272067,0.11687997,85840.0,85839.0,0.24464342]
[1765824272270,0.11687997,85843.0,85840.0,0.01164958]
[1765824272421,0.11687997,85843.0,85841.0,0.23298825]
[1765824272586,0.11687997,85843.0,85842.0,0.09069]
[1765824273601,0.11887997,85843.0,85842.0,0.09069]
[1765824274425,0.11887997,85843.0,85842.0,0.04223]
[1765824275085,0.11987997,85843.0,85842.0,0.09069]
[1765824275835,0.0250745,85857.0,85856.0,0.23294819]
[1765824276051,0.06287153,85874.0,85856.0,0.23294819]
[1765824276052,0.03142789,85876.0,85871.0,0.23290286]
[1765824276249,0.00038106,85876.0,85875.0,0.23289665]
[1765824276527,0.00038106,85876.0,85875.0,0.28296952]
[1765824276720,0.00038106,85876.0,85875.0,0.35498952]
[1765824277145,0.11726103,85876.0,85875.0,0.35498952]
[1765824277355,0.11926103,85876.0,85875.0,0.35498952]
[1765824277510,0.11726103,85876.0,85875.0,0.35498952]
[1765824277916,0.11726103,85876.0,85875.0,0.12609287]
[1765824279623,0.11726103,85876.0,85875.0,0.14269287]
[1765824280146,0.00038106,85876.0,85875.0,0.14569287]
[1765824281348,0.11726103,85876.0,85875.0,0.14569287]
[1765824281705,0.00038106,85876.0,85875.0,0.14569287]
[1765824281839,0.11726103,85876.0,85875.0,0.14569287]
[1765824282467,0.11726103,85876.0,85875.0,0.05507287]
[1765824282684,0.11726103,85876.0,85875.0,0.07367287]
[1765824282886,0.11726103,85876.0,85875.0,0.14569287]
[1765824284298,0.11726103,85876.0,85875.0,0.07367287]
[1765824284963,0.11726103,85876.0,85875.0,0.05507287]
[1765824285340,0.11726103,85876.0,85875.0,0.07367287]
[1765824285573,0.11726103,85876.0,85875.0,0.02521287]
[1765824285747,0.0103708,85876.0,85875.0,0.06867287]
[1765824285973,0.0103708,85876.0,85872.0,0.03837523]
[1765824285974,0.00038106,85876.0,85872.0,0.02673]
[1765824286140,0.00038106,85876.0,85865.0,0.27129724]
[1765824286141,0.11687997,85866.0,85865.0,0.27129724]
[1765824286322,0.11687997,85866.0,85865.0,0.28989724]
[1765824286526,0.11687997,85866.0,85865.0,0.33835724]
[1765824287152,0.11687997,85866.0,85865.0,0.04833]
[1765824287358,0.34980103,85866.0,85865.0,0.003]
[1765824287567,0.46426103,85866.0,85865.0,0.006]
[1765824287767,0.34980103,85866.0,85865.0,0.006]
[1765824287982,0.00998974,85866.0,85865.0,0.12648]
[1765824288190,0.00998974,85866.0,85865.0,0.05446]
[1765824288395,0.00998974,85866.0,85865.0,0.05146]
[1765824288943,0.01098974,85866.0,85865.0,0.12048]
[1765824289166,0.00998974,85854.0,85853.0,0.03837781]
[1765824289362,0.00998974,85854.0,85853.0,0.27828633]
[1765824289541,0.00998974,85854.0,85853.0,0.32674633]
[1765824289759,0.11687997,85859.0,85858.0,0.01164713]
[1765824289932,0.11687997,85858.0,85856.0,0.0116474]
[1765824290134,0.11687997,85858.0,85856.0,0.31661538]
[1765824290340,0.11687997,85858.0,85857.0,0.04846]
[1765824290576,0.11687997,85858.0,85857.0,0.28140547]
[1765824290792,0.01164523,85872.0,85867.0,0.01164591]
[1765824291012,0.00038106,85876.0,85875.0,0.23289665]
[1765824291166,0.11726103,85876.0,85875.0,0.23289665]
[1765824291388,0.01164401,85881.0,85875.0,0.05007287]
[1765824291745,0.01164591,85867.0,85865.0,0.02673]
[1765824291950,0.24456557,85867.0,85865.0,0.02673]
[1765824292152,0.00998974,85863.0,85861.0,0.03837673]
[1765824292348,0.00998974,85863.0,85862.0,0.23293191]
[1765824292521,0.00998974,85863.0,85862.0,0.35341191]
[1765824292726,0.00998974,85863.0,85862.0,0.37201191]
[1765824292927,0.01164605,85866.0,85863.0,0.01164646]
[1765824293134,0.24456793,85866.0,85863.0,0.24457553]
[1765824293381,0.12850222,85867.0,85863.0,0.24457564]
[1765824293589,0.11685631,85867.0,85866.0,0.23292106]
[1765824293722,0.11685631,85867.0,85862.0,0.10326659]
[1765824293723,0.23292432,85865.0,85862.0,0.10326659]
[1765824293956,0.11685631,85858.0,85857.0,0.01326014]
[1765824294157,0.11685631,85858.0,85857.0,0.26480561]
[1765824294360,0.00998974,85861.0,85860.0,0.01164686]
[1765824294999,0.01164632,85864.0,85858.0,0.01164713]
[1765824295000,0.11685631,85859.0,85858.0,0.01164713]
[1765824295199,0.11685631,85859.0,85858.0,0.24458989]
[1765824295399,0.11685631,85859.0,85858.0,0.29304989]
[1765824295603,0.24455714,85870.0,85866.0,0.01164605]
[1765824295827,0.24455714,85870.0,85862.0,0.001]
[1765824295828,0.11685631,85866.0,85865.0,0.02673]
[1765824296038,0.11685631,85866.0,85865.0,0.27825377]
[1765824296244,0.02163443,85876.0,85865.0,0.16742287]
[1765824296450,0.00998974,85876.0,85875.0,0.23289665]
[1765824296662,0.11685631,85877.0,85875.0,0.06867287]
[1765824296874,0.24288368,85876.0,85875.0,0.02021287]
[1765824297092,0.34975025,85876.0,85875.0,0.0186]
[1765824297300,0.01164442,85878.0,85866.0,0.01164605]
[1765824297301,0.11685631,85867.0,85866.0,0.01164605]
[1765824297515,0.002,85873.0,85872.0,0.23290478]
[1765824297755,0.002,85873.0,85872.0,0.28136478]
[1765824298126,0.23291698,85868.0,85866.0,0.02021287]
[1765824298328,0.01164591,85867.0,85859.0,0.011647]
[1765824298527,0.00998974,85862.0,85860.0,0.0186]
[1765824298785,0.11685631,85862.0,85861.0,0.30812455]
[1765824299067,0.11685631,85862.0,85861.0,0.39874455]
[1765824299211,0.11685631,85862.0,85861.0,0.32672455]
[1765824299567,0.11685631,85862.0,85861.0,0.30812462]
[1765824299745,0.11685631,85862.0,85861.0,0.32672462]
[1765824299932,0.11685631,85862.0,85861.0,0.09479]
[1765824300134,0.11685631,85862.0,85861.0,0.32772462]
[1765824300359,0.11685631,85870.0,85869.0,0.01164564]
[1765824300556,0.00998974,85876.0,85872.0,0.23290421]
[1765824300786,0.23293191,85862.0,85861.0,0.02873]
[1765824300960,0.00998974,85862.0,85861.0,0.00361287]
[1765824301184,0.00998974,85871.0,85865.0,0.01164618]